fUSD/lending_fUSD_20240713
["ID","MTS","AMOUNT","RATE_DAILY","PERIOD"]
[331946551,1720885844326,-9830.8528877,0.00013516,2]
[331946552,1720885844335,-222.22403384,0.00013516,2]
[331946553,1720885844345,-155.07663078,0.00013516,2]
[331946554,1720885844354,-1072.16482879,0.00013516,2]
[331946555,1720885844363,-410.88428034,0.00013574,2]
[331946556,1720885844372,-150.0,0.00013599,2]
[331946557,1720885844383,-2291.09,0.00013699,2]
[331946558,1720885844392,-221.83,0.00013699,2]
[331946559,1720885844402,-948.6865,0.000137,2]
[331946560,1720885844411,-1166.3509,0.000137,2]
[331946561,1720885844420,-2502.2336,0.000137,2]
[331946562,1720885844430,-282.7298,0.000137,2]
[331946563,1720885844439,-11489.0,0.000137,3]
[331946564,1720885844448,-2900.1,0.00013719,2]
[331946565,1720885844458,-500.0,0.00013726,2]
[331946566,1720885844467,-481.9187,0.00013779,2]
[331946567,1720885844476,-222.6918,0.0001378,2]
[331946568,1720885844485,-11008.06417645,0.0001378,2]
[331946569,1720885844496,-41128.70564825,0.0001378,2]
[331946610,1720885846138,-163.90445823,0.00013516,2]
[331946612,1720885846149,-113.79554177,0.0001378,2]
[331946618,1720885846195,-17570.39999996,0.0001378,2]
[331946626,1720885846305,-4660.92624026,0.0001378,2]
[331946628,1720885846362,-991.47837444,0.0001378,2]
[331946629,1720885846418,-1475.99704189,0.0001378,2]
[331946630,1720885846474,-404.4363469,0.0001378,2]
[331946631,1720885846591,-1106.90996519,0.0001378,2]
[331946639,1720886049836,200.0,0.00011199,2]
[331946640,1720886049857,2876.95946771,0.00011199,2]
[331946643,1720886096247,2376.26220892,0.00011199,2]
[331946644,1720886103361,155.13954738,0.00011199,2]
[331946648,1720886142793,1261.86348953,0.00011199,2]
[331946649,1720886148432,329.77528646,0.00011199,2]
[331946650,1720886148455,1735.68672914,0.00011199,2]
[331946653,1720886178483,292.44454055,0.00011199,2]
[331946657,1720886219255,475.28429914,0.00011199,2]
[331946660,1720886224083,155.0,0.00011199,2]
[331946662,1720886235268,475.28429914,0.00011199,2]
[331946664,1720886254364,3076.95946771,0.00011199,2]
[331946666,1720886261822,155.55648539,0.00011199,2]
[331946671,1720886301209,552.51494431,0.00011199,2]
[331946673,1720886318395,1368.46802832,0.00011199,2]
[331946674,1720886319600,722.09432961,0.00011199,2]
[331946677,1720886334755,626.36373021,0.00011199,2]
[331946678,1720886341931,2348.36798346,0.00011199,2]
[331946680,1720886343485,5704.20700675,0.00011199,2]
[331946681,1720886353592,519.10617361,0.00011199,2]
[331946685,1720886373811,687.7,0.00010745,2]
[331946686,1720886374790,627.52720199,0.00011199,2]
[331946687,1720886384429,2801.83425022,0.00011199,2]
[331946689,1720886392469,300.0,0.00011199,2]
[331946691,1720886412209,553.19201684,0.00011199,2]
[331946692,1720886415375,3076.95946771,0.00011199,2]
[331946693,1720886422445,1392.67864661,0.00011199,2]
[331946694,1720886428395,1447.31078575,0.00011199,2]
[331946695,1720886437134,163.85990627,0.00011199,2]
[331946696,1720886448011,227.34202992,0.00011199,2]
[331946697,1720886449621,155.24207177,0.00011199,2]
[331946698,1720886463205,227.34202992,0.00011199,2]
[331946700,1720886481186,196.65850358,0.00011199,2]
[331946701,1720886486334,210.40265388,0.00011199,2]
[331946704,1720886505403,298.39636076,0.00011199,2]
[331946705,1720886515140,957.97321156,0.00011199,2]
[331946706,1720886523842,291.84421931,0.00011199,2]
[331946707,1720886543183,235.78185267,0.00011199,2]
[331946708,1720886547985,155.20586533,0.00011199,2]
[331946709,1720886555977,155.0,0.00011199,2]
[331946710,1720886558098,316.13999639,0.00011199,2]
[331946711,1720886564579,276.15184313,0.00011199,2]
[331946712,1720886599604,609.88839857,0.00011199,2]
[331946713,1720886606144,21002.69162742,0.00011199,2]
[331946714,1720886619342,206.40300481,0.00011199,2]
[331946715,1720886629669,2445.6128013,0.00011199,2]
[331946716,1720886631056,1197.27370131,0.00011199,2]
[331946717,1720886659642,215.0451165,0.00011199,2]
[331946719,1720886685225,553.19201684,0.00011199,2]
[331946720,1720886700755,9244.88765842,0.00011199,2]
[331946721,1720886728323,2200.57256464,0.00011199,2]
[331946723,1720886735577,1135.76118208,0.00011199,2]
[331946724,1720886765726,1500.0,0.00011199,2]
[331946725,1720886768471,1649.01568666,0.00011199,2]
[331946726,1720886774106,395.58728235,0.00011199,2]
[331946727,1720886786364,611.63033259,0.00011199,2]
[331946728,1720886794224,254.18722909,0.00011199,2]
[331946729,1720886819448,254.48154078,0.00011199,2]
[331946978,1720886894844,627.52720199,0.00011199,2]
[331946979,1720886897724,650.65547744,0.00011199,2]
[331946980,1720886914760,167.47,9.949e-05,2]
[331946981,1720886914833,651.75967107,0.00011199,2]
[331946982,1720886917700,-500.0,0.0001126,2]
[331946983,1720886917727,-165.11051603,0.0001126,2]
[331946986,1720886934129,10515.60566167,0.00011199,2]
[331946987,1720886938053,227.34202992,0.00011199,2]
[331947107,1720886969198,195.36811445,0.00011199,2]
[331947108,1720886971648,789.53746221,0.00011199,2]
[331947109,1720886974795,626.4917788,0.00011199,2]
[331947115,1720886983672,275.21477577,0.00011199,2]
[331947120,1720886994431,518.06612514,0.00011199,2]
[331947123,1720887016419,-334.88948397,0.0001126,2]
[331947124,1720887016442,-500.0,0.0001126,2]
[331947125,1720887016464,-500.0,0.00012082,2]
[331947126,1720887016491,-296.30088508,0.00012273,2]
[331947127,1720887016514,-235.46499086,0.00012273,2]
[331947128,1720887016538,-155.30947103,0.00012273,2]
[331947129,1720887016561,-359.17093556,0.00012302,2]
[331947130,1720887016583,-210.40265388,0.00012302,2]
[331947131,1720887016605,-308.31366619,0.00012314,2]
[331947132,1720887016629,-3671.83,0.00012403,2]
[331947133,1720887016652,-640.0,0.00012445,2]
[331947134,1720887016675,-250.0,0.0001245,2]
[331947135,1720887016699,-160.51,0.00012459,2]
[331947136,1720887016721,-250.0,0.00012475,2]
[331947137,1720887016745,-150.0,0.00012479,2]
[331947138,1720887016768,-1977.80791343,0.0001248,2]
[331947139,1720887017723,-10000.0,0.0001248,2]
[331947140,1720887018214,-3245.80208657,0.0001248,2]
[331947141,1720887018237,-2021.05,0.0001248,2]
[331947148,1720887032122,-150.0,0.00012539,2]
[331947149,1720887032131,-12847.37,0.00012553,2]
[331947150,1720887032140,-360.0,0.00012717,2]
[331947151,1720887032149,-500.0,0.00012904,2]
[331947152,1720887032158,-500.0,0.00012904,2]
[331947153,1720887032167,-687.7,0.00013009,2]
[331947154,1720887032177,-155.30247153,0.00013128,2]
[331947155,1720887032186,-300.0,0.00013128,2]
[331947156,1720887032195,-155.14898173,0.00013128,2]
[331947157,1720887032205,-163.41,0.00013311,2]
[331947158,1720887032214,-295.744644,0.00013396,2]
[331947159,1720887032223,-929.024201,0.00013396,2]
[331947160,1720887032232,-296.2845449,0.00013472,2]
[331947161,1720887032241,-1787.47527683,0.00013472,2]
[331947162,1720887032251,-186.42838529,0.00013516,2]
[331947163,1720887032260,-1014.8383115,0.00013516,2]
[331947164,1720887032270,-1072.16482879,0.00013516,2]
[331947165,1720887032280,-254.87714343,0.00013516,2]
[331947166,1720887032291,-1072.16482879,0.00013516,2]
[331947167,1720887032300,-269.48015287,0.00013543,2]
[331947168,1720887032312,-155.18586474,0.00013543,2]
[331947169,1720887032323,-206.40300481,0.00013543,2]
[331947170,1720887032334,-295.744644,0.00013563,2]
[331947171,1720887032345,-929.024201,0.00013563,2]
[331947172,1720887032356,-227.34202992,0.00013574,2]
[331947173,1720887032366,-789.20386863,0.00013574,2]
[331947174,1720887032376,-193.62934922,0.00013574,2]
[331947175,1720887032386,-41744.43525667,0.00013574,2]
[331947176,1720887032396,-255.0,0.00013577,2]
[331947177,1720887032405,-1057.23378,0.0001364,2]
[331947178,1720887032414,-1057.23379,0.0001365,2]
[331947179,1720887032424,-1057.23379,0.0001369,2]
[331947180,1720887032433,-500.0,0.00013698,2]
[331947181,1720887032442,-1296.68,0.00013698,2]
[331947183,1720887032452,-1982.61,0.00013699,2]
[331947185,1720887032461,-349.01099507,0.00013699,2]
[331947187,1720887032470,-11489.0,0.000137,5]
[331947189,1720887032481,-911.6404,0.00013702,2]
[331947191,1720887032493,-4832.424,0.00013706,2]
[331947193,1720887032502,-606.09334528,0.00013708,2]
[331947196,1720887032543,-3834.18185265,0.00013708,2]
[331947197,1720887032559,-545.15058203,0.00013708,2]
[331947198,1720887032571,-313.57105066,0.00013708,2]
[331947199,1720887032586,-570.27129593,0.00013708,2]
[331947200,1720887032597,-617.82158968,0.00013708,2]
[331947201,1720887032609,-285.11798377,0.00013708,2]
[331947202,1720887032618,-1011.8634747,0.0001373,2]
[331947203,1720887032636,-45.3703153,0.0001373,2]
[331947204,1720887032645,-295.744644,0.00013731,2]
[331947205,1720887032656,-96.51584464,0.00013731,2]
[331947217,1720887038145,-169.57789502,0.00013128,2]
[331947218,1720887038155,-227.34202992,0.00013543,2]
[331947219,1720887038166,-322.6702118,0.00013543,2]
[331947220,1720887038175,-483.3927836,0.00013574,2]
[331947221,1720887038185,-671.48078295,0.00013731,2]
[331947222,1720887038197,-161.02757341,0.00013731,2]
[331947223,1720887038206,-500.0,0.00013753,2]
[331947224,1720887038215,-1296.68,0.00013753,2]
[331947225,1720887038224,-349.01099507,0.00013753,2]
[331947226,1720887038234,-757.04237542,0.00013759,2]
[331947227,1720887038244,-757.04237542,0.00013759,2]
[331947228,1720887038254,-155.0,0.0001378,2]
[331947229,1720887038263,-2000.0,0.0001378,2]
[331947230,1720887038273,-200.0,0.0001378,2]
[331947231,1720887038283,-2000.0,0.0001378,2]
[331947232,1720887038292,-200.0,0.0001378,2]
[331947233,1720887038302,-2000.0,0.0001378,2]
[331947234,1720887038311,-200.0,0.0001378,2]
[331947235,1720887038321,-1057.23379,0.0001378,2]
[331947236,1720887038330,-1057.23379,0.0001378,2]
[331947237,1720887038339,-200.0,0.0001378,2]
[331947238,1720887038349,-5657.04831438,0.000138,2]
[331947239,1720887038361,-25922.71608381,0.000138,2]
[331947240,1720887038376,-279.85,0.000138,2]
[331947241,1720887038388,-428.61941707,0.000138,2]
[331947242,1720887038400,-310.24010705,0.000138,2]
[331947243,1720887038411,-17566.6419341,0.000138,2]
[331947245,1720887038423,-9553.154996,0.000138,2]
[331947248,1720887038435,-6664.72914759,0.000138,2]
[331947249,1720887038444,-500.0,0.00013808,2]
[331947251,1720887038454,-1296.68,0.00013808,2]
[331947253,1720887038463,-349.01099507,0.00013808,2]
[331947255,1720887038474,-273.86985784,0.00013849,2]
[331947258,1720887038489,-323.53885003,0.00013849,2]
[331947259,1720887038499,-500.0,0.00013863,2]
[331947261,1720887038509,-1296.68,0.00013863,2]
[331947263,1720887038518,-349.01099507,0.00013863,2]
[331947265,1720887038527,-173.24,0.00013867,2]
[331947268,1720887038538,-500.0,0.00013869,2]
[331947271,1720887038548,-3899.34,0.00013869,2]
[331947273,1720887038557,-500.0,0.00013869,2]
[331947275,1720887038567,-500.0,0.00013869,2]
[331947277,1720887038578,-1583.31,0.00013869,2]
[331947279,1720887038587,-500.0,0.00013869,2]
[331947281,1720887038597,-1759.55638974,0.0001388,2]
[331947283,1720887038607,-500.0,0.00013888,2]
[331947285,1720887038616,-200.0,0.00013888,2]
[331947287,1720887038626,-295.744644,0.00013898,2]
[331947289,1720887038636,-843.81412116,0.00013898,2]
[331947291,1720887038647,-85.21007984,0.00013898,2]
[331947293,1720887038657,-585.42492761,0.00013899,2]
[331947295,1720887038667,-629.05857307,0.00013899,2]
[331947297,1720887038677,-85.05641948,0.00013899,2]
[331947299,1720887038689,-479.71896858,0.00013899,2]
[331947301,1720887038698,-500.0,0.00013899,2]
[331947303,1720887038708,-3979.379,0.000139,2]
[331947305,1720887038717,-332.72285234,0.000139,2]
[331947307,1720887038727,-623.67917908,0.000139,2]
[331947424,1720887040253,-357.03557246,0.000139,2]
[331947425,1720887040263,-118.04942753,0.00013916,2]
[331947426,1720887040276,-381.95057247,0.00013916,2]
[331947427,1720887040287,-500.0,0.00013916,2]
[331947428,1720887040295,-500.0,0.00013916,2]
[331947429,1720887040306,-500.0,0.00013916,2]
[331947430,1720887040317,-516.11480144,0.00013916,2]
[331947431,1720887040327,-434.49949951,0.00013916,2]
[331947432,1720887040338,-65.50050049,0.00013916,2]
[331947433,1720887040347,-246.59949951,0.00013916,2]
[331947434,1720887040462,-253.40050049,0.00013916,2]
[331947435,1720887040471,-500.0,0.00013916,2]
[331947436,1720887040481,-500.0,0.00013916,2]
[331947437,1720887040495,-502.87641465,0.00013917,2]
[331947438,1720887040504,-560.75,0.00013917,2]
[331947439,1720887040513,-500.0,0.00013917,2]
[331947440,1720887040523,-502.78553264,0.00013917,2]
[331947441,1720887040532,-503.05891008,0.00013917,2]
[331947442,1720887040543,-524.87,0.00013917,2]
[331947443,1720887040552,-503.11084728,0.00013917,2]
[331947444,1720887040561,-500.0,0.00013917,2]
[331947445,1720887040570,-502.63796993,0.00013917,2]
[331947446,1720887040579,-502.21147287,0.00013917,2]
[331947447,1720887040588,-183.92616035,0.00013917,2]
[331947448,1720887040597,-2000.0,0.00013917,2]
[331947449,1720887040606,-640.4,0.00013917,2]
[331947450,1720887040615,-503.21583244,0.00013917,2]
[331947451,1720887040624,-500.0,0.00013917,2]
[331947452,1720887040633,-500.0,0.00013917,2]
[331947453,1720887040642,-1296.68,0.00013917,2]
[331947454,1720887040652,-826.75,0.00013917,2]
[331947455,1720887040662,-500.0,0.00013917,2]
[331947456,1720887040672,-504.44500739,0.00013917,2]
[331947457,1720887040681,-506.99434335,0.00013917,2]
[331947458,1720887040690,-641.21,0.00013917,2]
[331947459,1720887040699,-507.3168749,0.00013917,2]
[331947460,1720887040708,-505.71168134,0.00013917,2]
[331947461,1720887040717,-504.17060559,0.00013917,2]
[331947462,1720887040726,-500.0,0.00013917,2]
[331947463,1720887040735,-500.0,0.00013917,2]
[331947464,1720887040744,-527.77089083,0.00013917,2]
[331947465,1720887040753,-500.0,0.00013917,2]
[331947466,1720887040762,-517.39,0.00013917,2]
[331947467,1720887040771,-501.76,0.00013917,2]
[331947468,1720887040780,-657.99,0.00013917,2]
[331947469,1720887040789,-500.0,0.00013917,2]
[331947470,1720887040798,-548.62,0.00013917,2]
[331947471,1720887040807,-500.0,0.00013917,2]
[331947472,1720887040816,-496.96245666,0.00013917,2]
[331947473,1720887040825,-355.24267888,0.00013917,2]
[331947474,1720887040835,-762.9,0.00013917,2]
[331947475,1720887040844,-529.4537272,0.00013917,2]
[331947476,1720887040853,-504.32631339,0.00013917,2]
[331947477,1720887040862,-500.0,0.00013917,2]
[331947478,1720887040871,-500.72529229,0.00013917,2]
[331947479,1720887040880,-500.0,0.00013917,2]
[331947480,1720887040890,-339.97058644,0.00013917,2]
[331947481,1720887040900,-266.91668952,0.00013917,2]
[331947482,1720887040909,-564.91770791,0.00013917,2]
[331947483,1720887040919,-501.52809506,0.00013917,2]
[331947484,1720887040927,-500.0,0.00013917,2]
[331947485,1720887040937,-603.91,0.00013917,2]
[331947486,1720887040946,-883.52,0.00013917,2]
[331947487,1720887040956,-555.21,0.00013917,2]
[331947488,1720887040965,-522.47768294,0.00013917,2]
[331947489,1720887040973,-500.0,0.00013917,2]
[331947490,1720887040982,-552.95,0.00013917,2]
[331947491,1720887040991,-500.0,0.00013917,2]
[331947492,1720887041000,-652.29,0.00013917,2]
[331947493,1720887041009,-500.0,0.00013917,2]
[331947494,1720887041019,-508.19217848,0.00013917,2]
[331947495,1720887041028,-500.0,0.00013917,2]
[331947496,1720887041037,-500.0,0.00013917,2]
[331947497,1720887041046,-500.0,0.00013917,2]
[331947498,1720887041055,-338.08153386,0.00013917,2]
[331947499,1720887041064,-500.0,0.00013917,2]
[331947500,1720887041073,-575.83,0.00013917,2]
[331947501,1720887041082,-523.89,0.00013917,2]
[331947502,1720887041091,-500.0,0.00013917,2]
[331947503,1720887041100,-746.75,0.00013917,2]
[331947504,1720887041109,-1039.07,0.00013917,2]
[331947505,1720887041118,-500.0,0.00013917,2]
[331947506,1720887041128,-500.0,0.00013917,2]
[331947507,1720887041137,-349.01099507,0.00013918,2]
[331947508,1720887041147,-2000.0,0.00013918,2]
[331947509,1720887041156,-200.0,0.00013918,2]
[331947510,1720887041166,-2000.0,0.00013918,2]
[331947511,1720887041177,-200.0,0.00013918,2]
[331947512,1720887041186,-2000.0,0.00013918,2]
[331947513,1720887041195,-200.0,0.00013918,2]
[331947514,1720887041205,-3899.34,0.00013924,2]
[331947515,1720887041214,-351.55,0.00013924,2]
[331947516,1720887041223,-500.0,0.00013924,2]
[331947517,1720887041233,-1583.31,0.00013924,2]
[331947518,1720887041242,-500.0,0.00013924,2]
[331947519,1720887041252,-503.03610731,0.00013933,2]
[331947520,1720887041261,-500.0,0.00013933,2]
[331947521,1720887041270,-500.0,0.00013933,2]
[331947522,1720887041279,-500.0,0.00013933,2]
[331947523,1720887041288,-500.0,0.00013933,2]
[331947524,1720887041297,-500.0,0.00013933,2]
[331947525,1720887041306,-500.0,0.00013933,2]
[331947526,1720887041315,-500.0,0.00013933,2]
[331947528,1720887041325,-500.0,0.00013933,2]
[331947529,1720887041333,-500.0,0.00013933,2]
[331947531,1720887041343,-500.0,0.00013933,2]
[331947533,1720887041351,-542.72,0.00013933,2]
[331947535,1720887041360,-500.0,0.00013933,2]
[331947537,1720887041369,-500.0,0.00013933,2]
[331947538,1720887041379,-500.0,0.00013933,2]
[331947540,1720887041388,-647.09,0.00013954,2]
[331947542,1720887041400,-448.84176476,0.00013962,3]
[331947544,1720887041409,-500.0,0.00013971,2]
[331947546,1720887041418,-219.59231738,0.00013971,2]
[331947548,1720887041428,-196.8078614,0.00013971,2]
[331947550,1720887041437,-500.0,0.00013971,2]
[331947552,1720887041447,-500.0,0.00013971,2]
[331947554,1720887041456,-560.75,0.00013972,2]
[331947556,1720887041465,-500.0,0.00013972,2]
[331947557,1720887041474,-524.87,0.00013972,2]
[331947559,1720887041484,-500.0,0.00013972,2]
[331947561,1720887041497,-2000.0,0.00013972,2]
[331947563,1720887041506,-640.4,0.00013972,2]
[331947565,1720887041515,-600.95,0.00013972,2]
[331947567,1720887041524,-500.0,0.00013972,2]
[331947569,1720887041534,-1296.68,0.00013972,2]
[331947571,1720887041543,-826.75,0.00013972,2]
[331947573,1720887041552,-641.21,0.00013972,2]
[331947574,1720887041562,-500.0,0.00013972,2]
[331947576,1720887041572,-152.41356894,0.00013972,2]
[331947578,1720887041581,-500.0,0.00013972,2]
[331947579,1720887041591,-501.76,0.00013972,2]
[331947580,1720887041602,-657.99,0.00013972,2]
[331947582,1720887041611,-276.06,0.00013972,2]
[331947583,1720887041621,-548.62,0.00013972,2]
[331947584,1720887041629,-500.0,0.00013972,2]
[331947586,1720887041639,-762.9,0.00013972,2]
[331947587,1720887041652,-500.0,0.00013972,2]
[331947588,1720887041661,-507.38080949,0.00013972,2]
[331947589,1720887041671,-603.91,0.00013972,2]
[331947590,1720887041680,-883.52,0.00013972,2]
[331947592,1720887041689,-555.21,0.00013972,2]
[331947594,1720887041698,-500.0,0.00013972,2]
[331947595,1720887041707,-552.95,0.00013972,2]
[331947597,1720887041716,-500.0,0.00013972,2]
[331947598,1720887041725,-652.29,0.00013972,2]
[331947599,1720887041734,-500.0,0.00013972,2]
[331947600,1720887041743,-437.87018301,0.00013972,2]
[331947601,1720887041752,-500.0,0.00013972,2]
[331947602,1720887041761,-500.0,0.00013972,2]
[331947603,1720887041771,-500.0,0.00013972,2]
[331947604,1720887041779,-575.83,0.00013972,2]
[331947605,1720887041788,-523.89,0.00013972,2]
[331947606,1720887041797,-500.0,0.00013972,2]
[331947607,1720887041807,-746.75,0.00013972,2]
[331947608,1720887041815,-1039.07,0.00013972,2]
[331947609,1720887041824,-500.0,0.00013972,2]
[331947610,1720887041835,-500.0,0.00013972,2]
[331947611,1720887041847,-448.84176476,0.00013978,3]
[331947612,1720887041856,-448.84176476,0.00013979,3]
[331947613,1720887041866,-3899.34,0.00013979,2]
[331947614,1720887041876,-500.0,0.00013979,2]
[331947615,1720887041887,-1583.31,0.00013979,2]
[331947616,1720887041897,-500.0,0.00013979,2]
[331947617,1720887041906,-191.197,0.0001398,2]
[331947618,1720887041916,-150.0,0.0001398,2]
[331947619,1720887041927,-448.84176476,0.0001398,3]
[331947620,1720887041937,-500.0,0.00013988,2]
[331947621,1720887041947,-500.0,0.00013988,2]
[331947622,1720887041957,-500.0,0.00013988,2]
[331947623,1720887041968,-500.0,0.00013988,2]
[331947624,1720887041977,-500.0,0.00013988,2]
[331947625,1720887041987,-500.0,0.00013988,2]
[331947626,1720887041996,-500.0,0.00013988,2]
[331947627,1720887042005,-500.0,0.00013988,2]
[331947628,1720887042014,-500.0,0.00013988,2]
[331947629,1720887042023,-500.0,0.00013988,2]
[331947630,1720887042035,-542.72,0.00013988,2]
[331947631,1720887042045,-500.0,0.00013988,2]
[331947632,1720887042055,-500.0,0.00013988,2]
[331947633,1720887042066,-3590.73411808,0.00013989,3]
[331947634,1720887042076,-4819.1869781,0.0001399,2]
[331947635,1720887042085,-3886.0704803,0.0001399,2]
[331947636,1720887042094,-2952.9539826,0.0001399,2]
[331947637,1720887042103,-2019.8374849,0.0001399,2]
[331947638,1720887042114,-1086.7209871,0.0001399,2]
[331947639,1720887042125,-391.67329141,0.00013998,2]
[331947640,1720887042134,-451.2744522,0.00013999,2]
[331947641,1720887042145,-493.61764614,0.00013999,2]
[331947642,1720887042155,-176764.17185378,0.00013999,2]
[331947643,1720887042170,-627.83,0.00013999,2]
[331947644,1720887042223,-0.46145648,0.00013999,2]
[331947645,1720887042236,-584.47445918,0.00013999,2]
[331947646,1720887042250,-115091.99999996,0.00013999,2]
[331947647,1720887042296,-415.87000001,0.00013999,2]
[331947648,1720887042308,-469.26882658,0.00013999,2]
[331947669,1720887044887,-712.04599,0.00013999,2]
[331947670,1720887044902,-312.14909766,0.00013999,2]
[331947671,1720887044915,-295317.2015834,0.00013999,2]
[331947672,1720887044932,-104409.99985332,0.00013999,2]
[331947673,1720887044941,-400.0,0.00013999,2]
[331947674,1720887044951,-87354.18015915,0.00014,2]
[331947675,1720887044963,-353011.94642481,0.00014,2]
[331947676,1720887046193,-2377.93226991,0.00014,2]
[331947677,1720887046317,-2130.05328759,0.00014,2]
[331947678,1720887046330,-1049.98152142,0.00014,2]
[331947679,1720887046356,-5751.00000001,0.00014,2]
[331947680,1720887046367,-11000.0,0.00014,2]
[331947681,1720887046515,-769.02819339,0.00014,2]
[331947682,1720887058205,500.0,0.0001126,2]
[331947685,1720887083168,500.0,0.0001126,2]
[331947686,1720887085036,500.0,0.00012082,2]
[331947689,1720887105354,689.77,0.00011118,2]
[331947696,1720887151914,155.0,0.0001126,2]
[331947697,1720887164404,155.0,0.00011118,2]
[331947699,1720887286409,256.89838561,0.00011118,2]
[331947700,1720887348551,170.26555831,0.00012314,2]
[331947701,1720887355214,718.05959923,0.00012302,2]
[331947702,1720887359977,155.0,0.00012314,2]
[331947703,1720887364262,849.54160024,0.00012302,2]
[331947704,1720887367975,83.61277004,0.00012314,2]
[331947705,1720887368001,71.38722996,0.00012314,2]
[331947706,1720887371039,263.7800964,0.00012314,2]
[331947707,1720887376548,185.89940493,0.00012314,2]
[331947708,1720887377266,457.35417858,0.00012314,2]
[331947709,1720887587901,1295.53948665,0.00012314,2]
[331947710,1720887692874,678.69,0.00010818,2]
[331947711,1720887770024,1200.0,0.00012302,2]
[331947712,1720887838839,1072.16482879,0.00012302,2]
[331947713,1720887885142,1038.30788256,0.00012302,2]
[331947714,1720887938678,1627.50180635,0.00025,60]
[331947716,1720887953927,3736.87689213,0.00012302,2]
[331947717,1720887953949,8545.6780674,0.00012302,2]
[331947721,1720887957414,1454.3219326,6.94e-05,2]
[331947722,1720887957438,10000.0,6.94e-05,2]
[331947723,1720887957461,4276.93317561,6.94e-05,2]
[331947728,1720887994592,346.826932,8.412e-05,2]
[331947729,1720887996024,1446.90950404,8.412e-05,2]
[331947730,1720887998047,1368.46802832,8.412e-05,2]
[331947731,1720887998717,628.29145865,0.00012314,2]
[331947732,1720887998826,552.57239721,0.0001,2]
[331947733,1720888001804,155.45899596,8.412e-05,2]
[331947734,1720888003400,256.35116785,0.0001,2]
[331947735,1720888005668,201.42918999,8.412e-05,2]
[331947736,1720888009658,329.23044534,0.0001,2]
[331947737,1720888010053,300.51199197,0.0001,2]
[331947738,1720888020782,137.01671306,8.412e-05,2]
[331947739,1720888020804,18.15818038,8.412e-05,2]
[331947742,1720888029677,171.49067848,8.412e-05,2]
[331947743,1720888029706,626.23568162,0.00012314,2]
[331947884,1720888037316,175.84113781,8.412e-05,2]
[331947917,1720888050726,659.82686887,0.00012302,2]
[331947939,1720888051237,295.06903382,0.00012121,2]
[331948015,1720888052990,1368.46802832,0.00012121,2]
[331948095,1720888058245,155.0,0.00012121,2]
[331948096,1720888059394,627.65425399,0.00012314,2]
[331948097,1720888060134,621.02015833,0.00012121,2]
[331948098,1720888061625,243.2198033,0.00012121,2]
[331948099,1720888064489,269.79567347,0.00012121,2]
[331948100,1720888066215,210.53515986,0.00012121,2]
[331948101,1720888073932,540.66349237,0.00012121,2]
[331948102,1720888074032,520.8575864,0.00012121,2]
[331948104,1720888082740,1786.42972449,0.0001,2]
[331948105,1720888095063,1266.09237124,0.00012302,2]
[331948106,1720888098355,443.64216725,0.00012314,2]
[331948107,1720888098377,31.39019408,0.00012314,2]
[331948108,1720888122756,210.37753606,0.0001,2]
[331948110,1720888136632,227.34202992,0.00012314,2]
[331948123,1720888158246,155.09550556,0.00012314,2]
[331948124,1720888163774,155.80827537,0.00012314,2]
[331948125,1720888167649,414.49823808,0.00012314,2]
[331948130,1720888178759,266.94758565,0.00012314,2]
[331948132,1720888209063,693.36,0.00010653,2]
[331948133,1720888210369,155.0,0.00012314,2]
[331948152,1720888232936,-397.82076205,0.00012589,2]